[Event "Titled Tuesday Blitz February 28 Late 2023"]
[White "Richter, Paul"]
[Black "Leschinsky, Gary"]
[WhiteFideId "2046350"]
[BlackFideId "30951321"]
[WhiteElo "2559"]
[BlackElo "1855"]
[Result "0-1"]
[Round "03"]
[TimeControl "180+2"]
[Date "2023.02.28"]
[WhiteClock "0:00:04"]
[BlackClock "0:00:22"]

1. e4 {[%clk 0:03:00]}  c5 {[%clk 0:02:59]} 2. Nf3 {[%clk 0:03:00]}  e6 {[%clk 0:02:59]} 3. d3 {[%clk 0:03:00]}  d5 {[%clk 0:02:50]} 4. Nbd2 {[%clk 0:03:01]}  Bd6 {[%clk 0:02:48]} 5. g3 {[%clk 0:03:01]}  Ne7 {[%clk 0:02:49]} 6. Bg2 {[%clk 0:03:01]}  O-O {[%clk 0:02:49]} 7. O-O {[%clk 0:03:01]}  Nbc6 {[%clk 0:02:49]} 8. Re1 {[%clk 0:03:00]}  b5 {[%clk 0:02:49]} 9. a4 {[%clk 0:02:59]}  b4 {[%clk 0:02:40]} 10. exd5 {[%clk 0:02:55]}  exd5 {[%clk 0:02:39]} 11. Nb3 {[%clk 0:02:54]}  Bg4 {[%clk 0:02:26]} 12. h3 {[%clk 0:02:51]}  Bf5 {[%clk 0:02:23]} 13. Be3 {[%clk 0:02:36]}  c4 {[%clk 0:02:15]} 14. Nbd4 {[%clk 0:02:23]}  Bg6 {[%clk 0:02:12]} 15. dxc4 {[%clk 0:02:14]}  dxc4 {[%clk 0:02:11]} 16. Nh4 {[%clk 0:01:54]}  Rc8 {[%clk 0:02:04]} 17. Nxg6 {[%clk 0:01:52]}  hxg6 {[%clk 0:02:04]} 18. Nb5 {[%clk 0:01:24]}  Be5 {[%clk 0:02:01]} 19. Qxd8 {[%clk 0:00:37]}  Rcxd8 {[%clk 0:01:52]} 20. Nxa7 {[%clk 0:00:33]}  Na5 {[%clk 0:01:23]} 21. Rab1 {[%clk 0:00:29]}  Nd5 {[%clk 0:01:19]} 22. Bc5 {[%clk 0:00:21]}  Rfe8 {[%clk 0:01:18]} 23. Bxd5 {[%clk 0:00:19]}  Rxd5 {[%clk 0:01:17]} 24. Bxb4 {[%clk 0:00:19]}  Ra8 {[%clk 0:01:14]} 25. Bxa5 {[%clk 0:00:18]}  Rxa7 {[%clk 0:01:13]} 26. Bb6 {[%clk 0:00:10]}  Rxa4 {[%clk 0:01:13]} 27. Be3 {[%clk 0:00:11]}  Rb4 {[%clk 0:01:11]} 28. b3 {[%clk 0:00:10]}  cxb3 {[%clk 0:01:11]} 29. Rxb3 {[%clk 0:00:11]}  Rc4 {[%clk 0:01:08]} 30. Re2 {[%clk 0:00:09]}  Kh7 {[%clk 0:01:02]} 31. Kg2 {[%clk 0:00:09]}  Rd7 {[%clk 0:00:57]} 32. Ra3 {[%clk 0:00:07]}  Bf6 {[%clk 0:00:55]} 33. Ra7 {[%clk 0:00:05]}  Rxa7 {[%clk 0:00:50]} 34. Bxa7 {[%clk 0:00:06]}  Rc3 {[%clk 0:00:48]} 35. Be3 {[%clk 0:00:07]}  Rc4 {[%clk 0:00:48]} 36. h4 {[%clk 0:00:07]}  Kg8 {[%clk 0:00:47]} 37. Kf3 {[%clk 0:00:08]}  Bc3 {[%clk 0:00:45]} 38. Bf4 {[%clk 0:00:07]}  f6 {[%clk 0:00:44]} 39. Ke3 {[%clk 0:00:07]}  Ba5 {[%clk 0:00:40]} 40. Kd3 {[%clk 0:00:08]}  Rc3+ {[%clk 0:00:40]} 41. Kd4 {[%clk 0:00:08]}  Rc8 {[%clk 0:00:39]} 42. Be3 {[%clk 0:00:08]}  Kf7 {[%clk 0:00:38]} 43. Ke4 {[%clk 0:00:08]}  f5+ {[%clk 0:00:37]} 44. Kf3 {[%clk 0:00:08]}  Rc3 {[%clk 0:00:37]} 45. Kg2 {[%clk 0:00:08]}  Rc4 {[%clk 0:00:35]} 46. Bg5 {[%clk 0:00:08]}  Bb4 {[%clk 0:00:35]} 47. f3 {[%clk 0:00:08]}  Bc5 {[%clk 0:00:35]} 48. Bc1 {[%clk 0:00:06]}  Bb4 {[%clk 0:00:34]} 49. Bf4 {[%clk 0:00:07]}  Ba3 {[%clk 0:00:34]} 50. Kf2 {[%clk 0:00:07]}  Bc5+ {[%clk 0:00:34]} 51. Ke1 {[%clk 0:00:08]}  Rc3 {[%clk 0:00:32]} 52. Kd2 {[%clk 0:00:06]}  Rxf3 {[%clk 0:00:31]} 53. c4 {[%clk 0:00:07]}  Bb4+ {[%clk 0:00:30]} 54. Kc2 {[%clk 0:00:06]}  Ba5 {[%clk 0:00:21]} 55. Kb2 {[%clk 0:00:06]}  Rc3 {[%clk 0:00:21]} 56. Rc2 {[%clk 0:00:06]}  Rd3 {[%clk 0:00:20]} 57. c5 {[%clk 0:00:06]}  Rd8 {[%clk 0:00:20]} 58. c6 {[%clk 0:00:06]}  Rc8 {[%clk 0:00:21]} 59. Kb3 {[%clk 0:00:07]}  Bc7 {[%clk 0:00:20]} 60. Ka4 {[%clk 0:00:06]}  Ke6 {[%clk 0:00:19]} 61. Kb5 {[%clk 0:00:07]}  Bxf4 {[%clk 0:00:19]} 62. g4 {[%clk 0:00:08]}  Kd6 {[%clk 0:00:20]} 63. gxf5 {[%clk 0:00:06]}  gxf5 {[%clk 0:00:21]} 64. Rf2 {[%clk 0:00:06]}  Ke5 {[%clk 0:00:20]} 65. Re2+ {[%clk 0:00:06]}  Kd4 {[%clk 0:00:20]} 66. Re7 {[%clk 0:00:05]}  Be3 {[%clk 0:00:20]} 67. Rxg7 {[%clk 0:00:02]}  f4 {[%clk 0:00:21]} 68. Rf7 {[%clk 0:00:03]}  Ke4 {[%clk 0:00:21]} 69. h5 {[%clk 0:00:04]}  f3 {[%clk 0:00:21]} 70. c7 {[%clk 0:00:04]}  f2 {[%clk 0:00:21]} 71. Rxf2 {[%clk 0:00:04]}  Bxf2 {[%clk 0:00:21]} 72. Kc6 {[%clk 0:00:04]}  Bg3 {[%clk 0:00:22]} 0-1


[Site "https://www.chess.com"]

[Event "Titled Tuesday Blitz February 28 Late 2023"]
[White "Cilek, Bora"]
[Black "Smith, Garrett L"]
[WhiteFideId "34502165"]
[BlackFideId "2024829"]
[WhiteElo "2108"]
[BlackElo "2287"]
[Result "1-0"]
[Round "03"]
[TimeControl "180+2"]
[Date "2023.02.28"]
[WhiteClock "0:00:18"]
[BlackClock "0:00:14"]

1. Nf3 {[%clk 0:03:00]}  c5 {[%clk 0:03:00]} 2. c4 {[%clk 0:03:00]}  Nc6 {[%clk 0:03:00]} 3. Nc3 {[%clk 0:03:00]}  e5 {[%clk 0:03:00]} 4. e3 {[%clk 0:03:01]}  Nf6 {[%clk 0:03:00]} 5. d4 {[%clk 0:03:01]}  cxd4 {[%clk 0:02:54]} 6. exd4 {[%clk 0:03:01]}  e4 {[%clk 0:02:55]} 7. Ne5 {[%clk 0:03:01]}  Bb4 {[%clk 0:02:52]} 8. Be2 {[%clk 0:02:51]}  Qa5 {[%clk 0:02:49]} 9. O-O {[%clk 0:02:39]}  Nxe5 {[%clk 0:02:22]} 10. dxe5 {[%clk 0:02:36]}  Qxe5 {[%clk 0:02:22]} 11. Bd2 {[%clk 0:02:33]}  O-O {[%clk 0:02:18]} 12. a3 {[%clk 0:02:31]}  Bd6 {[%clk 0:02:16]} 13. g3 {[%clk 0:02:27]}  Qe6 {[%clk 0:02:04]} 14. b4 {[%clk 0:02:16]}  a6 {[%clk 0:02:03]} 15. Rc1 {[%clk 0:02:12]}  b6 {[%clk 0:02:01]} 16. Be3 {[%clk 0:02:09]}  Be5 {[%clk 0:01:58]} 17. Na4 {[%clk 0:01:55]}  Rb8 {[%clk 0:01:49]} 18. Qd2 {[%clk 0:01:23]}  Rd8 {[%clk 0:01:39]} 19. Rfd1 {[%clk 0:01:22]}  d5 {[%clk 0:01:33]} 20. cxd5 {[%clk 0:01:18]}  Rxd5 {[%clk 0:01:24]} 21. Qc2 {[%clk 0:01:15]}  Bd7 {[%clk 0:01:09]} 22. Bc4 {[%clk 0:01:03]}  Rxd1+ {[%clk 0:01:06]} 23. Qxd1 {[%clk 0:00:59]}  Qh3 {[%clk 0:01:07]} 24. Bf1 {[%clk 0:00:56]}  Qe6 {[%clk 0:01:07]} 25. Bxa6 {[%clk 0:00:51]}  Nd5 {[%clk 0:00:45]} 26. Bc4 {[%clk 0:00:47]}  Bc6 {[%clk 0:00:23]} 27. Nxb6 {[%clk 0:00:32]}  Nxe3 {[%clk 0:00:23]} 28. Bxe6 {[%clk 0:00:33]}  Nxd1 {[%clk 0:00:23]} 29. Rxc6 {[%clk 0:00:33]}  fxe6 {[%clk 0:00:20]} 30. Nd7 {[%clk 0:00:28]}  Rb5 {[%clk 0:00:21]} 31. Rxe6 {[%clk 0:00:25]}  Bf6 {[%clk 0:00:18]} 32. Rxe4 {[%clk 0:00:20]}  Nc3 {[%clk 0:00:18]} 33. Rc4 {[%clk 0:00:19]}  h5 {[%clk 0:00:14]} 34. Nxf6+ {[%clk 0:00:18]} 1-0


[Site "https://www.chess.com"]

[Event "Titled Tuesday Blitz February 28 Late 2023"]
[White "Einarsson, Halldor Gretar"]
[Black "Prem, Pranav"]
[WhiteFideId "2300150"]
[BlackFideId "30901057"]
[WhiteElo "2126"]
[BlackElo "1970"]
[Result "0-1"]
[Round "03"]
[TimeControl "180+2"]
[Date "2023.02.28"]
[WhiteClock "0:00:02"]
[BlackClock "0:00:39"]

1. d4 {[%clk 0:03:00]}  d5 {[%clk 0:02:59]} 2. Nf3 {[%clk 0:02:58]}  Nf6 {[%clk 0:02:59]} 3. g3 {[%clk 0:02:58]}  c5 {[%clk 0:02:56]} 4. Bg2 {[%clk 0:02:55]}  Nc6 {[%clk 0:02:56]} 5. O-O {[%clk 0:02:53]}  e6 {[%clk 0:02:51]} 6. c4 {[%clk 0:02:41]}  Be7 {[%clk 0:02:44]} 7. cxd5 {[%clk 0:02:38]}  Nxd5 {[%clk 0:02:42]} 8. e4 {[%clk 0:02:10]}  Nf6 {[%clk 0:02:37]} 9. e5 {[%clk 0:02:02]}  Nd5 {[%clk 0:02:36]} 10. Nc3 {[%clk 0:01:58]}  Nxc3 {[%clk 0:02:30]} 11. bxc3 {[%clk 0:01:57]}  O-O {[%clk 0:02:30]} 12. h4 {[%clk 0:01:43]}  h6 {[%clk 0:02:19]} 13. Be3 {[%clk 0:01:41]}  cxd4 {[%clk 0:02:16]} 14. cxd4 {[%clk 0:01:40]}  Nb4 {[%clk 0:02:09]} 15. Nd2 {[%clk 0:01:29]}  Nd5 {[%clk 0:02:01]} 16. Ne4 {[%clk 0:01:26]}  Bd7 {[%clk 0:01:58]} 17. Qd2 {[%clk 0:01:14]}  Kh7 {[%clk 0:01:25]} 18. Nd6 {[%clk 0:01:05]}  Bxd6 {[%clk 0:01:22]} 19. exd6 {[%clk 0:01:01]}  Bc6 {[%clk 0:01:22]} 20. Bf4 {[%clk 0:00:56]}  Kg8 {[%clk 0:01:19]} 21. Rfe1 {[%clk 0:00:43]}  Qd7 {[%clk 0:01:11]} 22. Be4 {[%clk 0:00:37]}  Nxf4 {[%clk 0:01:06]} 23. Qxf4 {[%clk 0:00:36]}  Rfd8 {[%clk 0:01:06]} 24. d5 {[%clk 0:00:21]}  exd5 {[%clk 0:01:02]} 25. Bf5 {[%clk 0:00:21]}  Qxd6 {[%clk 0:01:02]} 26. Qxd6 {[%clk 0:00:18]}  Rxd6 {[%clk 0:01:03]} 27. Re7 {[%clk 0:00:17]}  Kf8 {[%clk 0:00:54]} 28. Rc7 {[%clk 0:00:13]}  Re8 {[%clk 0:00:53]} 29. g4 {[%clk 0:00:09]}  g6 {[%clk 0:00:50]} 30. Bd3 {[%clk 0:00:08]}  d4 {[%clk 0:00:46]} 31. h5 {[%clk 0:00:07]}  Re7 {[%clk 0:00:43]} 32. Rc8+ {[%clk 0:00:06]}  Kg7 {[%clk 0:00:43]} 33. hxg6 {[%clk 0:00:06]}  fxg6 {[%clk 0:00:44]} 34. Rc1 {[%clk 0:00:05]}  Rf6 {[%clk 0:00:41]} 35. Rd1 {[%clk 0:00:04]}  Rf4 {[%clk 0:00:41]} 36. g5 {[%clk 0:00:02]}  hxg5 {[%clk 0:00:39]} 0-1


[Site "https://www.chess.com"]

[Event "Titled Tuesday Blitz February 28 Late 2023"]
[White "De Souza, Cristiano Gomes"]
[Black "Tologon tegin, Semetei"]
[WhiteFideId "2151758"]
[BlackFideId "13800574"]
[WhiteElo "2068"]
[BlackElo "2247"]
[Result "0-1"]
[Round "03"]
[TimeControl "180+2"]
[Date "2023.02.28"]
[WhiteClock "0:00:09"]
[BlackClock "0:00:17"]

1. d4 {[%clk 0:02:55]}  d5 {[%clk 0:02:59]} 2. c4 {[%clk 0:02:54]}  c6 {[%clk 0:02:59]} 3. Nf3 {[%clk 0:02:54]}  Nf6 {[%clk 0:02:59]} 4. Nc3 {[%clk 0:02:55]}  a6 {[%clk 0:02:59]} 5. a4 {[%clk 0:02:50]}  Bf5 {[%clk 0:02:56]} 6. Bf4 {[%clk 0:02:47]}  e6 {[%clk 0:02:56]} 7. e3 {[%clk 0:02:46]}  Nbd7 {[%clk 0:02:55]} 8. c5 {[%clk 0:02:45]}  Be7 {[%clk 0:02:40]} 9. b4 {[%clk 0:02:42]}  b6 {[%clk 0:02:37]} 10. Bd3 {[%clk 0:02:20]}  Bxd3 {[%clk 0:02:17]} 11. Qxd3 {[%clk 0:02:19]}  O-O {[%clk 0:02:16]} 12. O-O {[%clk 0:02:17]}  a5 {[%clk 0:02:13]} 13. b5 {[%clk 0:02:05]}  bxc5 {[%clk 0:02:13]} 14. bxc6 {[%clk 0:02:04]}  c4 {[%clk 0:02:12]} 15. Qb1 {[%clk 0:01:54]}  Bb4 {[%clk 0:02:05]} 16. Na2 {[%clk 0:01:36]}  Nb6 {[%clk 0:01:58]} 17. Nxb4 {[%clk 0:01:35]}  axb4 {[%clk 0:01:59]} 18. a5 {[%clk 0:01:31]}  Nc8 {[%clk 0:01:55]} 19. Qxb4 {[%clk 0:01:25]}  Nh5 {[%clk 0:01:51]} 20. Qb7 {[%clk 0:01:03]}  Ra7 {[%clk 0:01:48]} 21. Qb8 {[%clk 0:00:58]}  Nxf4 {[%clk 0:01:46]} 22. exf4 {[%clk 0:00:49]}  Qc7 {[%clk 0:01:35]} 23. Qb5 {[%clk 0:00:42]}  Ne7 {[%clk 0:01:24]} 24. Ne5 {[%clk 0:00:36]}  Rfa8 {[%clk 0:01:13]} 25. Rfb1 {[%clk 0:00:28]}  f6 {[%clk 0:01:12]} 26. Nd7 {[%clk 0:00:19]}  Nxc6 {[%clk 0:00:54]} 27. Nb6 {[%clk 0:00:18]}  Rb8 {[%clk 0:00:45]} 28. Nxd5 {[%clk 0:00:17]}  exd5 {[%clk 0:00:45]} 29. Qxd5+ {[%clk 0:00:16]}  Kh8 {[%clk 0:00:40]} 30. Qxc4 {[%clk 0:00:16]}  Rxb1+ {[%clk 0:00:38]} 31. Rxb1 {[%clk 0:00:17]}  h6 {[%clk 0:00:37]} 32. d5 {[%clk 0:00:17]}  Nxa5 {[%clk 0:00:36]} 33. Qxc7 {[%clk 0:00:16]}  Rxc7 {[%clk 0:00:37]} 34. g3 {[%clk 0:00:16]}  Rd7 {[%clk 0:00:35]} 35. Rb5 {[%clk 0:00:15]}  Nc4 {[%clk 0:00:34]} 36. Kg2 {[%clk 0:00:15]}  Kg8 {[%clk 0:00:30]} 37. Rc5 {[%clk 0:00:15]}  Nd6 {[%clk 0:00:29]} 38. Kf3 {[%clk 0:00:14]}  f5 {[%clk 0:00:29]} 39. h3 {[%clk 0:00:14]}  Ne4 {[%clk 0:00:28]} 40. Rc8+ {[%clk 0:00:12]}  Kf7 {[%clk 0:00:27]} 41. g4 {[%clk 0:00:12]}  Nf6 {[%clk 0:00:23]} 42. gxf5 {[%clk 0:00:13]}  Rxd5 {[%clk 0:00:22]} 43. Rc7+ {[%clk 0:00:12]}  Kg8 {[%clk 0:00:22]} 44. Rc8+ {[%clk 0:00:11]}  Kh7 {[%clk 0:00:22]} 45. Rc4 {[%clk 0:00:11]}  Rxf5 {[%clk 0:00:21]} 46. Kg3 {[%clk 0:00:12]}  Rd5 {[%clk 0:00:20]} 47. Ra4 {[%clk 0:00:09]}  Kg6 {[%clk 0:00:20]} 48. Kf3 {[%clk 0:00:09]}  Kf5 {[%clk 0:00:20]} 49. Rb4 {[%clk 0:00:08]}  g6 {[%clk 0:00:19]} 50. Kg2 {[%clk 0:00:08]}  Nh5 {[%clk 0:00:18]} 51. Rb6 {[%clk 0:00:09]}  Nxf4+ {[%clk 0:00:17]} 52. Kf3 {[%clk 0:00:09]}  Rd3# {[%clk 0:00:17]} 0-1


[Site "https://www.chess.com"]

[Event "Titled Tuesday Blitz February 28 Late 2023"]
[White "Janaszak, Dawid"]
[Black "Chabris, Christopher"]
[WhiteFideId "1119206"]
[BlackFideId "2005263"]
[WhiteElo "2220"]
[BlackElo "2231"]
[Result "1-0"]
[Round "03"]
[TimeControl "180+2"]
[Date "2023.02.28"]
[WhiteClock "0:01:15"]
[BlackClock "0:00:01"]

1. e4 {[%clk 0:02:58]}  c5 {[%clk 0:02:59]} 2. Nc3 {[%clk 0:02:55]}  Nc6 {[%clk 0:02:58]} 3. f4 {[%clk 0:02:55]}  g6 {[%clk 0:02:57]} 4. Nf3 {[%clk 0:02:55]}  Bg7 {[%clk 0:02:57]} 5. Bc4 {[%clk 0:02:55]}  e6 {[%clk 0:02:55]} 6. O-O {[%clk 0:02:55]}  Nge7 {[%clk 0:02:54]} 7. d3 {[%clk 0:02:44]}  Nd4 {[%clk 0:02:47]} 8. f5 {[%clk 0:02:31]}  O-O {[%clk 0:02:34]} 9. Nxd4 {[%clk 0:02:22]}  Bxd4+ {[%clk 0:02:23]} 10. Kh1 {[%clk 0:02:22]}  exf5 {[%clk 0:02:11]} 11. Bg5 {[%clk 0:02:21]}  Kg7 {[%clk 0:01:20]} 12. exf5 {[%clk 0:02:16]}  f6 {[%clk 0:01:11]} 13. Bd2 {[%clk 0:01:57]}  d5 {[%clk 0:01:03]} 14. Bb3 {[%clk 0:01:41]}  Bxf5 {[%clk 0:00:53]} 15. Qf3 {[%clk 0:01:41]}  Be6 {[%clk 0:00:45]} 16. Rae1 {[%clk 0:01:40]}  Bg8 {[%clk 0:00:41]} 17. Qh3 {[%clk 0:01:35]}  h5 {[%clk 0:00:25]} 18. Ne2 {[%clk 0:01:30]}  Qc8 {[%clk 0:00:16]} 19. Nf4 {[%clk 0:01:24]}  f5 {[%clk 0:00:05]} 20. Rxe7+ {[%clk 0:01:24]}  Kh6 {[%clk 0:00:02]} 21. Ne6+ {[%clk 0:01:21]}  f4 {[%clk 0:00:01]} 22. Rxf4 {[%clk 0:01:15]} 1-0


[Site "https://www.chess.com"]

[Event "Titled Tuesday Blitz February 28 Late 2023"]
[White "Pert, Richard G"]
[Black "Floresvillar Gonzalez, Luis Migu"]
[WhiteFideId "404748"]
[BlackFideId "5100542"]
[WhiteElo "2441"]
[BlackElo "2040"]
[Result "1-0"]
[Round "03"]
[TimeControl "180+2"]
[Date "2023.02.28"]
[WhiteClock "0:00:17"]
[BlackClock "0:00:22"]

1. d4 {[%clk 0:03:00]}  d5 {[%clk 0:02:59]} 2. c4 {[%clk 0:03:00]}  c6 {[%clk 0:02:59]} 3. Nc3 {[%clk 0:02:59]}  Nf6 {[%clk 0:02:57]} 4. e3 {[%clk 0:02:59]}  g6 {[%clk 0:02:44]} 5. Nf3 {[%clk 0:02:56]}  Bg7 {[%clk 0:02:41]} 6. Be2 {[%clk 0:02:56]}  O-O {[%clk 0:02:40]} 7. O-O {[%clk 0:02:56]}  Bg4 {[%clk 0:02:36]} 8. b3 {[%clk 0:02:52]}  Nbd7 {[%clk 0:02:36]} 9. Bb2 {[%clk 0:02:44]}  e6 {[%clk 0:02:35]} 10. h3 {[%clk 0:02:40]}  Bxf3 {[%clk 0:02:32]} 11. Bxf3 {[%clk 0:02:41]}  h5 {[%clk 0:02:28]} 12. Rc1 {[%clk 0:02:36]}  Qe7 {[%clk 0:02:27]} 13. Qc2 {[%clk 0:02:31]}  Rfe8 {[%clk 0:02:27]} 14. Rfd1 {[%clk 0:02:28]}  a5 {[%clk 0:02:23]} 15. Be2 {[%clk 0:02:17]}  Rad8 {[%clk 0:02:22]} 16. Bf1 {[%clk 0:02:15]}  Nf8 {[%clk 0:02:21]} 17. Na4 {[%clk 0:02:07]}  N6d7 {[%clk 0:02:17]} 18. Qd2 {[%clk 0:01:58]}  Ra8 {[%clk 0:02:12]} 19. Bc3 {[%clk 0:01:52]}  b6 {[%clk 0:02:09]} 20. Bb2 {[%clk 0:01:40]}  dxc4 {[%clk 0:02:08]} 21. bxc4 {[%clk 0:01:39]}  Reb8 {[%clk 0:02:00]} 22. Rc2 {[%clk 0:01:21]}  Qb4 {[%clk 0:01:57]} 23. Nc3 {[%clk 0:01:13]}  a4 {[%clk 0:01:45]} 24. a3 {[%clk 0:01:11]}  Qe7 {[%clk 0:01:40]} 25. Ne4 {[%clk 0:01:07]}  Nf6 {[%clk 0:01:36]} 26. Nxf6+ {[%clk 0:01:01]}  Bxf6 {[%clk 0:01:34]} 27. Rdc1 {[%clk 0:01:00]}  Nd7 {[%clk 0:01:31]} 28. Bc3 {[%clk 0:00:57]}  Kg7 {[%clk 0:01:08]} 29. Be2 {[%clk 0:00:56]}  Kg8 {[%clk 0:01:05]} 30. Bf3 {[%clk 0:00:56]}  Rc8 {[%clk 0:01:05]} 31. Bb4 {[%clk 0:00:54]}  Qd8 {[%clk 0:01:01]} 32. c5 {[%clk 0:00:51]}  b5 {[%clk 0:01:00]} 33. e4 {[%clk 0:00:46]}  Bg5 {[%clk 0:00:58]} 34. Qe2 {[%clk 0:00:43]}  Nf6 {[%clk 0:00:55]} 35. Rd1 {[%clk 0:00:41]}  Bh6 {[%clk 0:00:54]} 36. Bd2 {[%clk 0:00:36]}  Bxd2 {[%clk 0:00:51]} 37. Rcxd2 {[%clk 0:00:37]}  Qe7 {[%clk 0:00:49]} 38. Qe3 {[%clk 0:00:36]}  Rd8 {[%clk 0:00:47]} 39. Qg5 {[%clk 0:00:35]}  Nd5 {[%clk 0:00:41]} 40. Qe5 {[%clk 0:00:27]}  Nc7 {[%clk 0:00:39]} 41. d5 {[%clk 0:00:24]}  cxd5 {[%clk 0:00:37]} 42. exd5 {[%clk 0:00:24]}  Qxc5 {[%clk 0:00:24]} 43. g4 {[%clk 0:00:19]}  hxg4 {[%clk 0:00:23]} 44. hxg4 {[%clk 0:00:20]}  Nxd5 {[%clk 0:00:22]} 45. Bxd5 {[%clk 0:00:19]}  Rxd5 {[%clk 0:00:21]} 46. Rxd5 {[%clk 0:00:18]}  exd5 {[%clk 0:00:22]} 47. Kg2 {[%clk 0:00:18]}  Qxa3 {[%clk 0:00:22]} 48. Rh1 {[%clk 0:00:17]} 1-0


[Site "https://www.chess.com"]

[Event "Titled Tuesday Blitz February 28 Late 2023"]
[White "WindWhistler11"]
[Black "Sailer, Mike"]
[BlackFideId "2012901"]
[WhiteElo "2535"]
[BlackElo "2109"]
[Result "1-0"]
[Round "03"]
[TimeControl "180+2"]
[Date "2023.02.28"]
[WhiteClock "0:00:04"]
[BlackClock "0:00:01"]

1. Nf3 {[%clk 0:02:59]}  d5 {[%clk 0:02:57]} 2. c4 {[%clk 0:02:59]}  e6 {[%clk 0:02:55]} 3. g3 {[%clk 0:02:56]}  Nf6 {[%clk 0:02:55]} 4. Bg2 {[%clk 0:02:56]}  Be7 {[%clk 0:02:33]} 5. b3 {[%clk 0:02:49]}  O-O {[%clk 0:02:34]} 6. Bb2 {[%clk 0:02:48]}  c5 {[%clk 0:02:22]} 7. O-O {[%clk 0:02:43]}  d4 {[%clk 0:02:18]} 8. e3 {[%clk 0:02:43]}  Nc6 {[%clk 0:02:16]} 9. exd4 {[%clk 0:02:44]}  cxd4 {[%clk 0:02:16]} 10. Re1 {[%clk 0:02:44]}  Re8 {[%clk 0:02:08]} 11. a3 {[%clk 0:02:42]}  a5 {[%clk 0:02:08]} 12. d3 {[%clk 0:02:36]}  Bc5 {[%clk 0:02:06]} 13. Ne5 {[%clk 0:02:31]}  Nxe5 {[%clk 0:01:59]} 14. Rxe5 {[%clk 0:02:31]}  Qc7 {[%clk 0:01:55]} 15. Re1 {[%clk 0:02:16]}  e5 {[%clk 0:01:34]} 16. Nd2 {[%clk 0:02:04]}  Bg4 {[%clk 0:01:23]} 17. Qc2 {[%clk 0:02:03]}  Rad8 {[%clk 0:00:58]} 18. Rab1 {[%clk 0:01:43]}  Bf5 {[%clk 0:00:57]} 19. f3 {[%clk 0:01:36]}  Qd6 {[%clk 0:00:39]} 20. Ra1 {[%clk 0:01:30]}  Rb8 {[%clk 0:00:26]} 21. h3 {[%clk 0:01:07]}  h6 {[%clk 0:00:20]} 22. g4 {[%clk 0:00:52]}  Bh7 {[%clk 0:00:16]} 23. Ne4 {[%clk 0:00:48]}  Qe7 {[%clk 0:00:14]} 24. Qd2 {[%clk 0:00:32]}  Nxe4 {[%clk 0:00:13]} 25. fxe4 {[%clk 0:00:32]}  b5 {[%clk 0:00:10]} 26. Bc1 {[%clk 0:00:26]}  bxc4 {[%clk 0:00:08]} 27. bxc4 {[%clk 0:00:27]}  Rb7 {[%clk 0:00:06]} 28. Qxa5 {[%clk 0:00:24]}  Reb8 {[%clk 0:00:06]} 29. Ra2 {[%clk 0:00:19]}  f6 {[%clk 0:00:06]} 30. Rf2 {[%clk 0:00:19]}  Kh8 {[%clk 0:00:06]} 31. h4 {[%clk 0:00:19]}  Bg8 {[%clk 0:00:06]} 32. g5 {[%clk 0:00:19]}  fxg5 {[%clk 0:00:06]} 33. hxg5 {[%clk 0:00:20]}  hxg5 {[%clk 0:00:06]} 34. Bf3 {[%clk 0:00:19]}  Be6 {[%clk 0:00:06]} 35. Kg2 {[%clk 0:00:19]}  Kg8 {[%clk 0:00:06]} 36. Rh1 {[%clk 0:00:19]}  g6 {[%clk 0:00:05]} 37. Qa6 {[%clk 0:00:15]}  Kg7 {[%clk 0:00:05]} 38. Rhf1 {[%clk 0:00:11]}  Rb6 {[%clk 0:00:05]} 39. Qa5 {[%clk 0:00:10]}  R6b7 {[%clk 0:00:04]} 40. Qd2 {[%clk 0:00:10]}  Ra8 {[%clk 0:00:04]} 41. Bd1 {[%clk 0:00:08]}  Rba7 {[%clk 0:00:03]} 42. Qxg5 {[%clk 0:00:08]}  Qxg5+ {[%clk 0:00:04]} 43. Bxg5 {[%clk 0:00:09]}  Bxa3 {[%clk 0:00:04]} 44. Rf6 {[%clk 0:00:10]}  Ra6 {[%clk 0:00:04]} 45. Bh4 {[%clk 0:00:08]}  Be7 {[%clk 0:00:04]} 46. Rxg6+ {[%clk 0:00:04]}  Kxg6 {[%clk 0:00:04]} 47. Bxe7 {[%clk 0:00:05]}  Re8 {[%clk 0:00:03]} 48. Rf6+ {[%clk 0:00:05]}  Kg7 {[%clk 0:00:03]} 49. Rf3 {[%clk 0:00:05]}  Rh8 {[%clk 0:00:04]} 50. Kf2 {[%clk 0:00:06]}  Rh2+ {[%clk 0:00:03]} 51. Kg3 {[%clk 0:00:05]}  Rd2 {[%clk 0:00:03]} 52. Bf6+ {[%clk 0:00:06]}  Kg6 {[%clk 0:00:03]} 53. Rf1 {[%clk 0:00:07]}  Raa2 {[%clk 0:00:04]} 54. Bf3 {[%clk 0:00:06]}  Rxd3 {[%clk 0:00:02]} 55. Bxe5 {[%clk 0:00:07]}  Raa3 {[%clk 0:00:02]} 56. c5 {[%clk 0:00:07]}  Bb3 {[%clk 0:00:02]} 57. Kg2 {[%clk 0:00:03]}  Ba4 {[%clk 0:00:01]} 58. Be2 {[%clk 0:00:02]}  Rd2 {[%clk 0:00:01]} 59. Kf2 {[%clk 0:00:02]}  Bc6 {[%clk 0:00:01]} 60. Rg1+ {[%clk 0:00:03]}  Kf7 {[%clk 0:00:01]} 61. Bxd4 {[%clk 0:00:04]} 1-0


[Site "https://www.chess.com"]